{"text_format":"3","workbook":"xlsx","n_sheets":1,"sheets":["Bajet Bulanan"],"not_rendered":{"charts":1,"defined_names":3},"read":"whole","date_system":"1900"}

{"sheet":"Bajet Bulanan","index":0,"n_rows":39,"n_cols":12,"rows_kept":39,"merged":[[2,11,2,12],[9,7,9,11],[15,7,15,11],[29,1,29,3]]}
[]
[null,"NAMA SYARIKAT"]
[null,"BAJET BULANAN",{"$nulls":9},"2011-03-01"]
[]
[null,"JUMLAH BAJET","ANGGARAN","SEBENAR","PERBEZAAN",null,null,"PENDAPATAN","ANGGARAN","SEBENAR","5 Amaun Tertinggi","PERBEZAAN"]
[null,"Pendapatan",{"$f":"IncomeTable[[#Totals],[ANGGARAN]]","v":{"v":63300,"d":"63,300.00"}},{"$f":"IncomeTable[[#Totals],[SEBENAR]]","v":{"v":57450,"d":"57,450.00"}},{"$f":"TotalsTable[[#This Row],[SEBENAR]]-TotalsTable[[#This Row],[ANGGARAN]]","v":{"v":-5850,"d":"(5,850.00)"}},null,null,"Jualan bersih",{"v":60000,"d":"60,000.00"},{"v":54000,"d":"54,000.00"},{"$f":"IncomeTable[[#This Row],[SEBENAR]]+(10^-6)*ROW(IncomeTable[[#This Row],[SEBENAR]])","v":{"v":54000.000006,"d":"54,000.00"}},{"$f":"IncomeTable[[#This Row],[SEBENAR]]-IncomeTable[[#This Row],[ANGGARAN]]","v":{"v":-6000,"d":"(6,000.00)"}}]
[null,"Perbelanjaan",{"$f":"OperatingExpensesTable[[#Totals],[ANGGARAN]]+PersonnelExpensesTable[[#Totals],[ANGGARAN]]","v":{"v":54500,"d":"54,500.00"}},{"$f":"OperatingExpensesTable[[#Totals],[SEBENAR]]+PersonnelExpensesTable[[#Totals],[SEBENAR]]","v":{"v":49630,"d":"49,630.00"}},{"$f":"TotalsTable[[#This Row],[ANGGARAN]]-TotalsTable[[#This Row],[SEBENAR]]","v":{"v":4870,"d":"4,870.00"}},null,null,"Pendapatan faedah",{"v":3000,"d":"3,000.00"},{"v":3000,"d":"3,000.00"},{"$f":"IncomeTable[[#This Row],[SEBENAR]]+(10^-6)*ROW(IncomeTable[[#This Row],[SEBENAR]])","v":{"v":3000.000007,"d":"3,000.00"}},{"$f":"IncomeTable[[#This Row],[SEBENAR]]-IncomeTable[[#This Row],[ANGGARAN]]","v":{"v":0,"d":"0.00"}}]
[null,"Baki (Pendapatan tolak Perbelanjaan)",{"$f":"C6-C7","v":{"v":8800,"d":"8,800.00"}},{"$f":"D6-D7","v":{"v":7820,"d":"7,820.00"}},{"$f":"TotalsTable[[#Totals],[SEBENAR]]-TotalsTable[[#Totals],[ANGGARAN]]","v":{"v":-980,"d":"(980.00)"}},null,null,"Jualan aset (untung/rugi)",{"v":300,"d":"300.00"},{"v":450,"d":"450.00"},{"$f":"IncomeTable[[#This Row],[SEBENAR]]+(10^-6)*ROW(IncomeTable[[#This Row],[SEBENAR]])","v":{"v":450.000008,"d":"450.00"}},{"$f":"IncomeTable[[#This Row],[SEBENAR]]-IncomeTable[[#This Row],[ANGGARAN]]","v":{"v":150,"d":"150.00"}}]
[{"$nulls":7},"Jumlah",{"$f":"SUBTOTAL(109,IncomeTable[ANGGARAN])","v":{"v":63300,"d":"63,300.00"}},{"$f":"SUBTOTAL(109,IncomeTable[SEBENAR])","v":{"v":57450,"d":"57,450.00"}},null,{"$f":"SUBTOTAL(109,IncomeTable[PERBEZAAN])","v":{"v":-5850,"d":"(5,850.00)"}}]
[]
[{"$nulls":7},"PERBELANJAAN KAKITANGAN","ANGGARAN","SEBENAR","5 Amaun Tertinggi","PERBEZAAN"]
[{"$nulls":7},"Gaji",{"v":9500,"d":"9,500.00"},{"v":9600,"d":"9,600.00"},{"$f":"PersonnelExpensesTable[[#This Row],[SEBENAR]]+(10^-6)*ROW(PersonnelExpensesTable[[#This Row],[SEBENAR]])","v":{"v":9600.000012,"d":"9,600.00"}},{"$f":"PersonnelExpensesTable[[#This Row],[ANGGARAN]]-PersonnelExpensesTable[[#This Row],[SEBENAR]]","v":{"v":-100,"d":"(100.00)"}}]
[{"$nulls":7},"Manfaat pekerja",{"v":4000,"d":"4,000.00"},null,{"$f":"PersonnelExpensesTable[[#This Row],[SEBENAR]]+(10^-6)*ROW(PersonnelExpensesTable[[#This Row],[SEBENAR]])","v":{"v":1.3e-05,"d":"0.00"}},{"$f":"PersonnelExpensesTable[[#This Row],[ANGGARAN]]-PersonnelExpensesTable[[#This Row],[SEBENAR]]","v":{"v":4000,"d":"4,000.00"}}]
[{"$nulls":7},"Komisen",{"v":5000,"d":"5,000.00"},{"v":4500,"d":"4,500.00"},{"$f":"PersonnelExpensesTable[[#This Row],[SEBENAR]]+(10^-6)*ROW(PersonnelExpensesTable[[#This Row],[SEBENAR]])","v":{"v":4500.000014,"d":"4,500.00"}},{"$f":"PersonnelExpensesTable[[#This Row],[ANGGARAN]]-PersonnelExpensesTable[[#This Row],[SEBENAR]]","v":{"v":500,"d":"500.00"}}]
[{"$nulls":7},"Jumlah Kakitangan",{"$f":"SUBTOTAL(109,PersonnelExpensesTable[ANGGARAN])","v":{"v":18500,"d":"18,500.00"}},{"$f":"SUBTOTAL(109,PersonnelExpensesTable[SEBENAR])","v":{"v":14100,"d":"14,100.00"}},null,{"$f":"SUBTOTAL(109,PersonnelExpensesTable[PERBEZAAN])","v":{"v":4400,"d":"4,400.00"}}]
[]
[{"$nulls":7},"PERBELANJAAN PENGENDALIAN","ANGGARAN","SEBENAR","5 Amaun Tertinggi","PERBEZAAN"]
[{"$nulls":7},"Pengiklanan",{"v":3000,"d":"3,000.00"},{"v":2500,"d":"2,500.00"},{"$f":"OperatingExpensesTable[[#This Row],[SEBENAR]]+(10^-6)*ROW(OperatingExpensesTable[[#This Row],[SEBENAR]])","v":{"v":2500.000018,"d":"2,500.00"}},{"$f":"OperatingExpensesTable[[#This Row],[ANGGARAN]]-OperatingExpensesTable[[#This Row],[SEBENAR]]","v":{"v":500,"d":"500.00"}}]
[{"$nulls":7},"Hutang lapuk",{"v":2000,"d":"2,000.00"},{"v":2000,"d":"2,000.00"},{"$f":"OperatingExpensesTable[[#This Row],[SEBENAR]]+(10^-6)*ROW(OperatingExpensesTable[[#This Row],[SEBENAR]])","v":{"v":2000.000019,"d":"2,000.00"}},{"$f":"OperatingExpensesTable[[#This Row],[ANGGARAN]]-OperatingExpensesTable[[#This Row],[SEBENAR]]","v":{"v":0,"d":"0.00"}}]
[{"$nulls":7},"Diskaun tunai",{"v":1500,"d":"1,500.00"},{"v":2175,"d":"2,175.00"},{"$f":"OperatingExpensesTable[[#This Row],[SEBENAR]]+(10^-6)*ROW(OperatingExpensesTable[[#This Row],[SEBENAR]])","v":{"v":2175.00002,"d":"2,175.00"}},{"$f":"OperatingExpensesTable[[#This Row],[ANGGARAN]]-OperatingExpensesTable[[#This Row],[SEBENAR]]","v":{"v":-675,"d":"(675.00)"}}]
[{"$nulls":7},"Kos penghantaran",{"v":2000,"d":"2,000.00"},{"v":1500,"d":"1,500.00"},{"$f":"OperatingExpensesTable[[#This Row],[SEBENAR]]+(10^-6)*ROW(OperatingExpensesTable[[#This Row],[SEBENAR]])","v":{"v":1500.000021,"d":"1,500.00"}},{"$f":"OperatingExpensesTable[[#This Row],[ANGGARAN]]-OperatingExpensesTable[[#This Row],[SEBENAR]]","v":{"v":500,"d":"500.00"}}]
[{"$nulls":7},"Susut Nilai",{"v":1000,"d":"1,000.00"},{"v":1000,"d":"1,000.00"},{"$f":"OperatingExpensesTable[[#This Row],[SEBENAR]]+(10^-6)*ROW(OperatingExpensesTable[[#This Row],[SEBENAR]])","v":{"v":1000.000022,"d":"1,000.00"}},{"$f":"OperatingExpensesTable[[#This Row],[ANGGARAN]]-OperatingExpensesTable[[#This Row],[SEBENAR]]","v":{"v":0,"d":"0.00"}}]
[{"$nulls":7},"Tamat tempoh dan langganan",{"v":500,"d":"500.00"},{"v":525,"d":"525.00"},{"$f":"OperatingExpensesTable[[#This Row],[SEBENAR]]+(10^-6)*ROW(OperatingExpensesTable[[#This Row],[SEBENAR]])","v":{"v":525.000023,"d":"525.00"}},{"$f":"OperatingExpensesTable[[#This Row],[ANGGARAN]]-OperatingExpensesTable[[#This Row],[SEBENAR]]","v":{"v":-25,"d":"(25.00)"}}]
[{"$nulls":7},"Insurans",{"v":1300,"d":"1,300.00"},{"v":1275,"d":"1,275.00"},{"$f":"OperatingExpensesTable[[#This Row],[SEBENAR]]+(10^-6)*ROW(OperatingExpensesTable[[#This Row],[SEBENAR]])","v":{"v":1275.000024,"d":"1,275.00"}},{"$f":"OperatingExpensesTable[[#This Row],[ANGGARAN]]-OperatingExpensesTable[[#This Row],[SEBENAR]]","v":{"v":25,"d":"25.00"}}]
[{"$nulls":7},"Faedah",{"v":2000,"d":"2,000.00"},{"v":2200,"d":"2,200.00"},{"$f":"OperatingExpensesTable[[#This Row],[SEBENAR]]+(10^-6)*ROW(OperatingExpensesTable[[#This Row],[SEBENAR]])","v":{"v":2200.000025,"d":"2,200.00"}},{"$f":"OperatingExpensesTable[[#This Row],[ANGGARAN]]-OperatingExpensesTable[[#This Row],[SEBENAR]]","v":{"v":-200,"d":"(200.00)"}}]
[{"$nulls":7},"Legal dan audit",{"v":1000,"d":"1,000.00"},{"v":800,"d":"800.00"},{"$f":"OperatingExpensesTable[[#This Row],[SEBENAR]]+(10^-6)*ROW(OperatingExpensesTable[[#This Row],[SEBENAR]])","v":{"v":800.000026,"d":"800.00"}},{"$f":"OperatingExpensesTable[[#This Row],[ANGGARAN]]-OperatingExpensesTable[[#This Row],[SEBENAR]]","v":{"v":200,"d":"200.00"}}]
[{"$nulls":7},"Penyelenggaraan dan pembaikan",{"v":4500,"d":"4,500.00"},{"v":4600,"d":"4,600.00"},{"$f":"OperatingExpensesTable[[#This Row],[SEBENAR]]+(10^-6)*ROW(OperatingExpensesTable[[#This Row],[SEBENAR]])","v":{"v":4600.000027,"d":"4,600.00"}},{"$f":"OperatingExpensesTable[[#This Row],[ANGGARAN]]-OperatingExpensesTable[[#This Row],[SEBENAR]]","v":{"v":-100,"d":"(100.00)"}}]
[{"$nulls":7},"Bekalan pejabat",{"v":800,"d":"800.00"},{"v":750,"d":"750.00"},{"$f":"OperatingExpensesTable[[#This Row],[SEBENAR]]+(10^-6)*ROW(OperatingExpensesTable[[#This Row],[SEBENAR]])","v":{"v":750.000028,"d":"750.00"}},{"$f":"OperatingExpensesTable[[#This Row],[ANGGARAN]]-OperatingExpensesTable[[#This Row],[SEBENAR]]","v":{"v":50,"d":"50.00"}}]
[{"$nulls":7},"Bayaran Pos",{"v":400,"d":"400.00"},{"v":350,"d":"350.00"},{"$f":"OperatingExpensesTable[[#This Row],[SEBENAR]]+(10^-6)*ROW(OperatingExpensesTable[[#This Row],[SEBENAR]])","v":{"v":350.000029,"d":"350.00"}},{"$f":"OperatingExpensesTable[[#This Row],[ANGGARAN]]-OperatingExpensesTable[[#This Row],[SEBENAR]]","v":{"v":50,"d":"50.00"}}]
[{"$nulls":7},"Sewa atau gadai janji",{"v":4100,"d":"4,100.00"},{"v":4500,"d":"4,500.00"},{"$f":"OperatingExpensesTable[[#This Row],[SEBENAR]]+(10^-6)*ROW(OperatingExpensesTable[[#This Row],[SEBENAR]])","v":{"v":4500.00003,"d":"4,500.00"}},{"$f":"OperatingExpensesTable[[#This Row],[ANGGARAN]]-OperatingExpensesTable[[#This Row],[SEBENAR]]","v":{"v":-400,"d":"(400.00)"}}]
[null,"APAKAH 5 PERBELANJAAN PENGENDALIAN SAYA YANG TERTINGGI?",{"$nulls":5},"Perbelanjaan jualan",{"v":350,"d":"350.00"},{"v":400,"d":"400.00"},{"$f":"OperatingExpensesTable[[#This Row],[SEBENAR]]+(10^-6)*ROW(OperatingExpensesTable[[#This Row],[SEBENAR]])","v":{"v":400.000031,"d":"400.00"}},{"$f":"OperatingExpensesTable[[#This Row],[ANGGARAN]]-OperatingExpensesTable[[#This Row],[SEBENAR]]","v":{"v":-50,"d":"(50.00)"}}]
[null,"PERBELANJAAN","AMAUN","% PERBELANJAAN","15% PENGURANGAN",null,null,"Penghantaran dan storan",{"v":900,"d":"900.00"},{"v":840,"d":"840.00"},{"$f":"OperatingExpensesTable[[#This Row],[SEBENAR]]+(10^-6)*ROW(OperatingExpensesTable[[#This Row],[SEBENAR]])","v":{"v":840.000032,"d":"840.00"}},{"$f":"OperatingExpensesTable[[#This Row],[ANGGARAN]]-OperatingExpensesTable[[#This Row],[SEBENAR]]","v":{"v":60,"d":"60.00"}}]
[null,{"$f":"INDEX(OperatingExpensesTable[],MATCH(Top5Expenses[[#This Row],[AMAUN]],OperatingExpensesTable[5 Amaun Tertinggi],0),1)","v":"Penyelenggaraan dan pembaikan"},{"$f":"LARGE(OperatingExpensesTable[5 Amaun Tertinggi],1)","v":{"v":4600.000027,"d":"4,600.00"}},{"$f":"Top5Expenses[[#This Row],[AMAUN]]/$D$7","v":{"v":0.09268587602256699,"d":"9.3%"}},{"$f":"Top5Expenses[[#This Row],[AMAUN]]*0.15","v":{"v":690.00000405,"d":"690.00"}},null,null,"Bekalan",{"v":5000,"d":"5,000.00"},{"v":4500,"d":"4,500.00"},{"$f":"OperatingExpensesTable[[#This Row],[SEBENAR]]+(10^-6)*ROW(OperatingExpensesTable[[#This Row],[SEBENAR]])","v":{"v":4500.000033,"d":"4,500.00"}},{"$f":"OperatingExpensesTable[[#This Row],[ANGGARAN]]-OperatingExpensesTable[[#This Row],[SEBENAR]]","v":{"v":500,"d":"500.00"}}]
[null,{"$f":"INDEX(OperatingExpensesTable[],MATCH(Top5Expenses[[#This Row],[AMAUN]],OperatingExpensesTable[5 Amaun Tertinggi],0),1)","v":"Bekalan"},{"$f":"LARGE(OperatingExpensesTable[5 Amaun Tertinggi],2)","v":{"v":4500.000033,"d":"4,500.00"}},{"$f":"Top5Expenses[[#This Row],[AMAUN]]/$D$7","v":{"v":0.09067096580697159,"d":"9.1%"}},{"$f":"Top5Expenses[[#This Row],[AMAUN]]*0.15","v":{"v":675.0000049500001,"d":"675.00"}},null,null,"Cukai",{"v":3000,"d":"3,000.00"},{"v":3200,"d":"3,200.00"},{"$f":"OperatingExpensesTable[[#This Row],[SEBENAR]]+(10^-6)*ROW(OperatingExpensesTable[[#This Row],[SEBENAR]])","v":{"v":3200.000034,"d":"3,200.00"}},{"$f":"OperatingExpensesTable[[#This Row],[ANGGARAN]]-OperatingExpensesTable[[#This Row],[SEBENAR]]","v":{"v":-200,"d":"(200.00)"}}]
[null,{"$f":"INDEX(OperatingExpensesTable[],MATCH(Top5Expenses[[#This Row],[AMAUN]],OperatingExpensesTable[5 Amaun Tertinggi],0),1)","v":"Sewa atau gadai janji"},{"$f":"LARGE(OperatingExpensesTable[5 Amaun Tertinggi],3)","v":{"v":4500.00003,"d":"4,500.00"}},{"$f":"Top5Expenses[[#This Row],[AMAUN]]/$D$7","v":{"v":0.09067096574652428,"d":"9.1%"}},{"$f":"Top5Expenses[[#This Row],[AMAUN]]*0.15","v":{"v":675.0000045,"d":"675.00"}},null,null,"Telefon",{"v":250,"d":"250.00"},{"v":280,"d":"280.00"},{"$f":"OperatingExpensesTable[[#This Row],[SEBENAR]]+(10^-6)*ROW(OperatingExpensesTable[[#This Row],[SEBENAR]])","v":{"v":280.000035,"d":"280.00"}},{"$f":"OperatingExpensesTable[[#This Row],[ANGGARAN]]-OperatingExpensesTable[[#This Row],[SEBENAR]]","v":{"v":-30,"d":"(30.00)"}}]
[null,{"$f":"INDEX(OperatingExpensesTable[],MATCH(Top5Expenses[[#This Row],[AMAUN]],OperatingExpensesTable[5 Amaun Tertinggi],0),1)","v":"Cukai"},{"$f":"LARGE(OperatingExpensesTable[5 Amaun Tertinggi],4)","v":{"v":3200.000034,"d":"3,200.00"}},{"$f":"Top5Expenses[[#This Row],[AMAUN]]/$D$7","v":{"v":0.06447713145275036,"d":"6.4%"}},{"$f":"Top5Expenses[[#This Row],[AMAUN]]*0.15","v":{"v":480.0000051,"d":"480.00"}},null,null,"Utiliti",{"v":1400,"d":"1,400.00"},{"v":1385,"d":"1,385.00"},{"$f":"OperatingExpensesTable[[#This Row],[SEBENAR]]+(10^-6)*ROW(OperatingExpensesTable[[#This Row],[SEBENAR]])","v":{"v":1385.000036,"d":"1,385.00"}},{"$f":"OperatingExpensesTable[[#This Row],[ANGGARAN]]-OperatingExpensesTable[[#This Row],[SEBENAR]]","v":{"v":15,"d":"15.00"}}]
[null,{"$f":"INDEX(OperatingExpensesTable[],MATCH(Top5Expenses[[#This Row],[AMAUN]],OperatingExpensesTable[5 Amaun Tertinggi],0),1)","v":"Pengiklanan"},{"$f":"LARGE(OperatingExpensesTable[5 Amaun Tertinggi],5)","v":{"v":2500.000018,"d":"2,500.00"}},{"$f":"Top5Expenses[[#This Row],[AMAUN]]/$D$7","v":{"v":0.050372758774934516,"d":"5.0%"}},{"$f":"Top5Expenses[[#This Row],[AMAUN]]*0.15","v":{"v":375.00000270000004,"d":"375.00"}},null,null,"Lain",{"v":1000,"d":"1,000.00"},{"v":750,"d":"750.00"},{"$f":"OperatingExpensesTable[[#This Row],[SEBENAR]]+(10^-6)*ROW(OperatingExpensesTable[[#This Row],[SEBENAR]])","v":{"v":750.000037,"d":"750.00"}},{"$f":"OperatingExpensesTable[[#This Row],[ANGGARAN]]-OperatingExpensesTable[[#This Row],[SEBENAR]]","v":{"v":250,"d":"250.00"}}]
[null,"Jumlah",{"$f":"SUBTOTAL(109,Top5Expenses[AMAUN])","v":{"v":19300.000142,"d":"19,300.00"}},{"$f":"SUBTOTAL(109,Top5Expenses[% PERBELANJAAN])","v":{"v":0.38887769780374776,"d":"38.9%"}},{"$f":"SUBTOTAL(109,Top5Expenses[15% PENGURANGAN])","v":{"v":2895.0000213000003,"d":"2,895.00"}},null,null,"Jumlah Pengendalian",{"$f":"SUBTOTAL(109,OperatingExpensesTable[ANGGARAN])","v":{"v":36000,"d":"36,000.00"}},{"$f":"SUBTOTAL(109,OperatingExpensesTable[SEBENAR])","v":{"v":35530,"d":"35,530.00"}},null,{"$f":"SUBTOTAL(109,OperatingExpensesTable[PERBEZAAN])","v":{"v":470,"d":"470.00"}}]
[null," ",{"$nulls":5}," "]